bitfinex/quotes_SOLUSD_20240712
["timestamp","ask_amount","ask_price","bid_price","bid_amount"]
[1720756053060,7.2733,137.49,137.44,7.2756]
[1720756053364,7.2741,137.48,137.42,6.0753]
[1720756053664,7.2733,137.49,137.44,7.2758]
[1720756054670,7.4429,137.5,137.42,6.0753]
[1720756054836,7.2729,137.5,137.42,6.0753]
[1720756055471,7.2722,137.51,137.42,6.0753]
[1720756055665,7.2722,137.51,137.43,45.0]
[1720756056143,45.17,137.54,137.46,7.2746]
[1720756056343,7.2724,137.51,137.46,7.2746]
[1720756056565,7.2727,137.5,137.46,7.2746]
[1720756056753,7.2727,137.5,137.45,7.2752]
[1720756057065,7.2723,137.51,137.42,6.0753]
[1720756057263,7.2713,137.53,137.43,45.0]
[1720756057451,7.2713,137.53,137.47,16.6666]
[1720756057764,7.2717,137.52,137.47,16.6666]
[1720756058169,7.2712,137.53,137.48,7.2734]
[1720756058373,7.2726,137.51,137.46,7.2745]
[1720756059167,7.2727,137.5,137.46,7.2745]
[1720756059366,7.2723,137.51,137.47,7.2742]
[1720756059751,7.2718,137.52,137.48,7.2737]
[1720756059953,15.05644861,137.53,137.48,7.2737]
[1720756060161,18.40434118,137.57,137.5,7.2725]
[1720756060162,7.2706,137.54,137.5,7.2725]
[1720756060444,7.2706,137.54,137.49,6.0753]
[1720756060647,7.2706,137.54,137.49,13.3483]
[1720756061253,7.2711,137.53,137.49,13.3483]
[1720756061768,7.2717,137.52,137.49,6.0753]
[1720756062066,7.2717,137.52,137.46,6.0753]
[1720756062367,7.2717,137.52,137.46,7.52503357]
[1720756062583,7.2717,137.52,137.48,7.2736]
[1720756062742,7.2713,137.53,137.48,7.2736]
[1720756062941,7.2713,137.53,137.46,7.52503357]
[1720756062942,7.2708,137.54,137.49,7.2731]
[1720756063377,15.2241912,137.55,137.5,7.2725]
[1720756063671,7.6136912,137.55,137.51,7.2721]
[1720756063863,14.8837912,137.55,137.51,7.2721]
[1720756064175,7.2709,137.54,137.49,7.273]
[1720756065064,14.8837912,137.55,137.51,7.272]
[1720756065265,7.6136912,137.55,137.51,7.272]
[1720756065470,7.6136912,137.55,137.52,7.2716]
[1720756066672,7.6136912,137.55,137.51,7.2719]
[1720756067750,14.8838912,137.55,137.51,7.2719]
[1720756068056,14.8838912,137.55,137.5,7.2724]
[1720756068265,7.6136912,137.55,137.52,6.182]
[1720756068471,7.2691,137.57,137.52,13.4534]
[1720756069478,7.2696,137.56,137.52,13.4534]
[1720756069976,7.2696,137.56,137.52,6.182]
[1720756070146,7.2701,137.55,137.52,6.182]
[1720756070346,7.2712,137.53,137.49,29.1129]
[1720756070974,7.2717,137.52,137.49,6.182]
[1720756071349,0.17,137.55,137.49,6.182]
[1720756071667,45.34,137.55,137.49,6.182]
[1720756071870,7.2719,137.52,137.46,15.0849]
[1720756072058,45.34,137.55,137.46,21.7228]
[1720756072059,7.273,137.5,137.46,21.7228]
[1720756072248,7.2733,137.49,137.46,21.7228]
[1720756072959,7.2733,137.49,137.44,7.2757]
[1720756073185,7.2739,137.48,137.43,7.2762]
[1720756073357,7.2765,137.43,137.39,6.6379]
[1720756073683,28.84,137.47,137.39,13.9164]
[1720756073852,7.2762,137.44,137.39,13.9164]
[1720756075178,7.2754,137.45,137.41,7.2774]
[1720756075549,7.275,137.46,137.42,7.2769]
[1720756075760,28.84,137.47,137.42,7.2769]
[1720756075761,7.6144,137.47,137.42,7.2769]
[1720756076672,7.6144,137.47,137.41,7.2772]
[1720756076673,7.2749,137.46,137.41,7.2772]
[1720756077185,7.2749,137.46,137.42,7.2768]
[1720756077480,7.6145,137.47,137.42,7.2768]
[1720756077984,7.2739,137.48,137.43,7.2762]
[1720756078160,7.2743,137.47,137.43,7.2762]
[1720756078360,7.2749,137.46,137.39,6.6379]
[1720756078764,7.2749,137.46,137.41,7.2771]
[1720756079782,7.61765435,137.48,137.39,6.6379]
[1720756079974,7.61765435,137.48,137.4,45.0]
[1720756080289,14.89155435,137.48,137.43,7.2763]
[1720756080494,7.2733,137.49,137.44,7.2755]
[1720756082160,7.2738,137.48,137.44,7.2755]
[1720756082483,7.2743,137.47,137.42,7.2767]
[1720756082914,18.1841,137.49,137.39,6.6379]
[1720756083187,7.276,137.44,137.39,6.6379]
[1720756083564,7.2755,137.45,137.4,7.2777]
[1720756083955,7.2755,137.45,137.39,6.6379]
[1720756083956,7.2746,137.47,137.43,7.2763]
[1720756084160,7.2746,137.47,137.42,7.2768]
[1720756084360,0.17,137.49,137.4,7.2778]
[1720756084662,7.2759,137.44,137.4,7.2778]
[1720756084856,7.2755,137.45,137.4,7.2778]
[1720756085066,7.2755,137.45,137.41,7.2774]
[1720756085288,7.2759,137.44,137.4,7.2779]
[1720756085789,7.2755,137.45,137.4,7.2779]
[1720756086175,7.2759,137.44,137.4,7.2779]
[1720756086685,7.2755,137.45,137.4,7.2779]
[1720756087662,7.2759,137.44,137.4,7.2779]
[1720756087862,7.2755,137.45,137.4,7.2779]
[1720756088788,7.2755,137.45,137.41,7.2774]
[1720756089097,7.275,137.46,137.41,7.2774]
[1720756089305,7.2744,137.47,137.42,7.2769]
[1720756089521,7.2744,137.47,137.42,7.2767]
[1720756089723,7.2749,137.46,137.42,7.2767]
[1720756090205,7.2753,137.45,137.39,6.6379]
[1720756090401,7.2753,137.45,137.4,7.2776]
[1720756090800,7.2759,137.44,137.4,7.2776]
[1720756091215,7.2755,137.45,137.41,7.2774]
[1720756091594,7.276,137.44,137.4,7.2779]
[1720756093911,7.61798866,137.47,137.39,6.6379]
[1720756094123,7.2741,137.48,137.43,7.276]
[1720756094325,7.2741,137.48,137.43,23.2451]
[1720756094626,7.2734,137.49,137.44,6.3175]
[1720756094987,7.2729,137.5,137.46,7.2747]
[1720756095314,7.2723,137.51,137.46,7.2746]
[1720756095686,7.2728,137.5,137.46,7.2746]
[1720756095918,7.2728,137.5,137.45,7.2752]
[1720756096092,7.2735,137.49,137.44,13.5931]
[1720756096497,18.1811,137.51,137.44,6.3175]
[1720756096898,7.2733,137.49,137.44,13.5929]
[1720756097222,7.2728,137.5,137.45,7.2749]
[1720756097512,7.2732,137.49,137.45,7.2749]
[1720756097701,7.2738,137.48,137.44,6.3175]
[1720756098308,7.2744,137.47,137.44,6.3175]
[1720756099220,7.275,137.46,137.44,6.3175]
[1720756099426,28.5,137.49,137.44,6.3175]
[1720756099597,28.5,137.49,137.43,15.9691]
[1720756099598,0.34,137.48,137.43,15.9691]
[1720756100003,45.34,137.48,137.43,15.9691]
[1720756100203,45.34,137.48,137.41,13.8955]
[1720756100516,7.2758,137.45,137.41,6.6181]
[1720756101425,7.2758,137.45,137.41,13.8954]
[1720756101925,0.34,137.48,137.41,6.6181]
[1720756102305,7.444,137.48,137.41,6.6181]
[1720756102502,7.274,137.48,137.43,7.2763]
[1720756104411,7.2728,137.5,137.45,7.275]
[1720756105117,7.2728,137.5,137.46,7.2748]
[1720756105516,7.2732,137.49,137.45,16.3443]
[1720756105715,7.2738,137.48,137.45,16.3443]
[1720756105916,7.2743,137.47,137.45,16.3443]
[1720756107044,7.2743,137.47,137.43,7.2762]
[1720756107209,7.2743,137.47,137.41,22.9624]
[1720756107409,7.2743,137.47,137.42,7.2767]
[1720756107612,7.2735,137.49,137.44,7.2756]
[1720756108517,7.2737,137.48,137.44,7.2756]
[1720756108929,7.2734,137.49,137.44,7.2756]
[1720756110533,7.2739,137.48,137.43,7.2762]
[1720756110930,7.2744,137.47,137.43,7.2762]
[1720756111242,7.2744,137.47,137.41,22.9624]
[1720756111413,7.2744,137.47,137.42,7.2767]
[1720756111609,7.2744,137.47,137.41,22.9624]
[1720756111610,7.2744,137.47,137.43,7.2763]
[1720756111823,7.274,137.48,137.43,7.2763]
[1720756115543,7.274,137.48,137.44,7.2757]
[1720756116618,35.26342979,137.47,137.44,7.2757]
[1720756116817,14.26,137.47,137.44,7.2757]
[1720756117421,7.78681879,137.5,137.42,14.26]
[1720756117624,35.26218136,137.49,137.46,7.2745]
[1720756117947,14.26,137.49,137.45,7.2752]
[1720756118532,35.26095731,137.48,137.45,7.2752]
[1720756118737,14.26,137.48,137.44,7.2756]
[1720756118921,21.00249579,137.47,137.44,7.2756]
[1720756119240,21.5338,137.48,137.44,7.2756]
[1720756119435,35.2625776,137.47,137.44,7.2756]
[1720756119643,14.26,137.47,137.44,7.2756]
[1720756123414,14.26,137.47,137.43,7.2763]
[1720756123620,14.26,137.46,137.42,7.2768]
[1720756123844,7.276,137.44,137.41,22.9624]
[1720756124027,14.26,137.43,137.41,6.6181]
[1720756124347,14.26,137.42,137.39,7.2784]
[1720756124736,14.26,137.41,137.38,29.7681]
[1720756124937,14.26,137.4,137.38,6.3127]
[1720756125143,14.26,137.4,137.35,30.4365]
[1720756125144,14.26,137.39,137.36,7.28]
[1720756125631,14.26,137.39,137.37,7.2796]
[1720756129237,14.26,137.39,137.36,7.28]
[1720756129550,14.26,137.38,137.36,7.28]
[1720756129754,14.26,137.39,137.36,7.28]
[1720756129962,14.26,137.38,137.36,7.28]
[1720756130858,14.26,137.38,137.37,7.2796]
[1720756131157,14.26,137.4,137.38,7.279]
[1720756131366,14.26,137.41,137.38,7.279]
[1720756131660,7.2766,137.43,137.38,7.279]
[1720756131957,14.26,137.39,137.35,16.1765]
[1720756132139,14.26,137.39,137.36,7.2799]
[1720756132340,14.26,137.38,137.36,7.2799]
[1720756132861,14.26,137.39,137.36,7.2799]
[1720756133441,7.2793,137.38,137.34,6.3127]
[1720756133831,14.26,137.37,137.34,6.3127]
[1720756134037,14.26,137.36,137.34,6.3127]
[1720756134462,0.17,137.4,137.35,7.2804]
[1720756134463,7.62234457,137.39,137.35,7.2804]
[1720756134657,14.26,137.38,137.34,6.3127]
[1720756134852,14.26,137.38,137.35,7.2805]
[1720756135171,14.26,137.37,137.35,7.2805]
[1720756135748,7.62151064,137.42,137.34,6.3127]
[1720756135954,7.2756,137.45,137.4,7.2778]
[1720756136255,14.26,137.43,137.38,14.26]
[1720756136558,7.2755,137.45,137.42,7.2766]
[1720756136559,14.26,137.45,137.42,7.2766]
[1720756137073,14.26,137.45,137.41,7.2772]
[1720756137450,14.26,137.45,137.41,21.5372]
[1720756137863,275.2874,137.51,137.41,14.26]
[1720756138041,14.26,137.46,137.43,7.2762]
[1720756138248,14.26,137.46,137.42,23.9331]
[1720756138662,7.2746,137.47,137.42,23.9331]
[1720756138854,7.2749,137.46,137.42,16.6563]
[1720756139899,67.60068053,137.5,137.42,16.6563]
[1720756139900,49.41868053,137.5,137.43,7.276]
[1720756140182,21.34444623,137.49,137.42,16.6563]
[1720756140478,7.2734,137.49,137.44,7.2758]
[1720756140650,7.61704903,137.5,137.44,7.2758]
[1720756140851,7.2738,137.48,137.42,16.6563]
[1720756141057,7.2738,137.48,137.43,7.2761]
[1720756141458,7.2745,137.47,137.42,23.9331]
[1720756141754,7.2736,137.49,137.44,7.2754]
[1720756142156,7.2736,137.49,137.45,7.2752]
[1720756142365,14.88994903,137.5,137.45,7.2752]
[1720756142558,21.00413998,137.49,137.46,7.2747]
[1720756142874,258.7,137.51,137.47,7.2742]
[1720756143471,265.9722,137.51,137.46,7.2746]
[1720756143672,28.27431122,137.5,137.45,7.2752]
[1720756143981,7.2732,137.49,137.45,7.2752]
[1720756144281,7.2728,137.5,137.45,7.2752]
[1720756144653,258.87,137.51,137.46,7.2745]
[1720756144852,28.27471453,137.5,137.45,7.275]
[1720756145053,7.2727,137.5,137.45,7.275]
[1720756145272,266.1424,137.51,137.46,7.2747]
[1720756145517,21.00201988,137.5,137.46,7.2747]
[1720756145785,265.9724,137.51,137.46,7.2747]
[1720756146851,258.7,137.51,137.47,7.2742]
[1720756147485,265.9722,137.51,137.47,7.2742]
[1720756147983,7.36579353,137.54,137.47,15.2804]
[1720756148166,20.99898044,137.53,137.49,7.2729]
[1720756148487,28.27018044,137.53,137.48,13.3167]
[1720756148782,7.2718,137.52,137.48,6.0431]
[1720756149776,7.2724,137.51,137.48,6.0431]
[1720756150675,0.17,137.53,137.47,15.2804]
[1720756150868,7.2726,137.51,137.47,15.2804]
[1720756151184,7.2727,137.5,137.47,15.2804]
[1720756152561,7.2724,137.51,137.47,15.2804]
[1720756152785,7.2718,137.52,137.47,22.5546]
[1720756153681,7.2723,137.51,137.47,15.2804]
[1720756153980,7.2733,137.49,137.44,28.3577]
[1720756154679,7.2738,137.48,137.44,21.0823]
[1720756154981,7.2733,137.49,137.44,28.3578]
[1720756155365,7.2739,137.48,137.44,21.0823]
[1720756155558,7.443,137.5,137.45,7.275]
[1720756155765,7.273,137.5,137.45,7.275]
[1720756155961,7.2734,137.49,137.44,28.3579]
[1720756156365,7.2728,137.5,137.46,7.2747]
[1720756156580,44.2046,137.53,137.47,7.2742]
[1720756156790,7.2724,137.51,137.46,7.2746]
[1720756157368,7.2724,137.51,137.47,7.2741]
[1720756157702,7.2724,137.51,137.46,7.2746]
[1720756158200,7.2728,137.5,137.46,7.2746]
[1720756158498,7.2728,137.5,137.45,7.2751]
[1720756158786,7.273,137.5,137.45,7.2751]
[1720756159092,7.273,137.5,137.44,21.0823]
[1720756159397,7.2729,137.5,137.46,7.2747]
[1720756159697,7.2727,137.5,137.46,7.2747]
[1720756160599,7.2723,137.51,137.46,7.2747]
[1720756161975,14.88742985,137.51,137.46,7.2747]
[1720756162194,7.6116,137.53,137.47,7.2741]
[1720756162390,7.61471283,137.52,137.44,21.0823]
[1720756162700,7.2718,137.52,137.47,7.2741]
[1720756162892,7.2723,137.51,137.46,7.2747]
[1720756163103,7.2723,137.51,137.47,7.2742]
[1720756163595,7.2718,137.52,137.47,7.2742]
[1720756165327,7.2714,137.53,137.44,21.0823]
[1720756165605,7.2714,137.53,137.45,45.17]
[1720756165981,7.2714,137.53,137.48,7.2736]
[1720756166308,7.2722,137.51,137.47,7.2742]
[1720756167103,7.2719,137.52,137.47,7.2742]
[1720756167306,18.1753,137.55,137.46,7.2746]
[1720756167307,46.7053,137.55,137.46,7.2746]
[1720756167495,7.2724,137.51,137.46,7.2746]
[1720756168188,7.2728,137.5,137.45,7.2751]
[1720756169411,63.5177,137.54,137.46,7.2746]
[1720756169608,21.00106277,137.53,137.47,7.2742]
[1720756169818,21.34106277,137.52,137.44,21.0823]
[1720756170017,7.2728,137.5,137.45,7.275]
[1720756170617,7.2728,137.5,137.46,7.2747]
[1720756170792,7.2733,137.49,137.45,7.275]
[1720756171292,7.274,137.48,137.44,21.0823]
[1720756171492,7.2733,137.49,137.44,28.3579]
[1720756172608,7.6138,137.48,137.44,21.0823]
[1720756172814,7.2743,137.47,137.44,21.0823]
[1720756173113,0.17,137.48,137.41,23.2257]
[1720756173114,7.2751,137.46,137.41,23.2257]
[1720756173500,7.4439,137.48,137.43,7.2763]
[1720756173698,7.4439,137.48,137.44,7.2758]
[1720756173891,7.4434,137.49,137.45,7.2752]
[1720756174090,7.4434,137.49,137.41,23.2257]
[1720756174091,28.53,137.51,137.41,23.2257]
[1720756174307,21.34266851,137.5,137.41,23.2257]
[1720756174499,28.27704554,137.49,137.44,7.2756]
[1720756174703,14.26,137.48,137.44,7.2756]
[1720756176102,14.26,137.48,137.45,7.2752]
[1720756176304,21.87626959,137.5,137.46,7.2744]
[1720756176501,14.26,137.5,137.46,7.2744]
[1720756176920,14.26,137.5,137.45,14.26]
[1720756176921,21.5328,137.5,137.45,21.5351]
[1720756177094,21.5332,137.49,137.45,7.2751]
[1720756177417,14.26,137.49,137.45,7.2751]
[1720756178803,14.26,137.47,137.42,14.26]
[1720756179211,14.26,137.47,137.43,7.2762]
[1720756179936,21.5346,137.47,137.42,14.26]
[1720756180740,21.00523515,137.46,137.42,14.26]
[1720756180900,14.26,137.47,137.42,14.26]
[1720756181230,21.00555826,137.46,137.42,14.26]
[1720756181518,21.00555826,137.46,137.41,30.5028]
[1720756181519,35.26555826,137.45,137.41,30.5028]
[1720756181705,7.2753,137.46,137.42,7.2767]
[1720756181706,21.00555826,137.44,137.42,7.2767]
[1720756181899,21.5353,137.46,137.42,7.2767]
[1720756182107,21.0068437,137.45,137.42,7.2767]
[1720756182303,21.0068437,137.44,137.42,7.2767]
[1720756182516,21.5353,137.46,137.42,7.2767]
[1720756182702,21.00660457,137.45,137.41,30.5029]
[1720756182906,35.26660457,137.44,137.41,13.8425]
[1720756183232,14.26,137.44,137.41,7.2772]
[1720756183403,14.26,137.45,137.41,7.2772]
[1720756183721,21.0067772,137.44,137.41,7.2772]
[1720756183932,14.26,137.45,137.41,7.2772]
[1720756184114,21.00660457,137.44,137.41,7.2772]
[1720756184319,14.26,137.45,137.41,7.2772]
[1720756184637,21.00660725,137.44,137.41,7.2772]
[1720756184800,14.26,137.44,137.41,7.2772]
[1720756185531,21.5359,137.44,137.4,7.2778]
[1720756185710,21.5359,137.44,137.38,22.2636]
[1720756185711,14.26,137.43,137.39,7.2783]
[1720756185909,14.26,137.42,137.39,7.2783]
[1720756189008,14.26,137.43,137.38,37.97810289]
[1720756189329,14.26,137.44,137.4,7.2778]
[1720756189725,14.26,137.43,137.38,22.2636]
[1720756189914,14.26,137.42,137.39,7.278]
[1720756190931,14.26,137.42,137.38,29.5424]
[1720756191439,14.26,137.4,137.37,7.2794]
[1720756196026,14.26,137.38,137.35,6.2549]
[1720756196223,7.2793,137.38,137.33,7.2815]
[1720756196421,14.26,137.36,137.33,7.2815]
[1720756197314,14.26,137.36,137.34,7.2811]
[1720756197515,14.26,137.36,137.33,7.2815]
[1720756197833,21.5413,137.34,137.28,21.5369]
[1720756198030,21.5413,137.34,137.29,7.2835]
[1720756198031,14.26,137.31,137.29,7.2835]
[1720756200346,14.26,137.31,137.28,21.5369]
[1720756200531,0.34,137.37,137.28,21.5369]
[1720756200727,7.2815,137.34,137.28,21.5369]
[1720756201237,7.2818,137.33,137.28,21.5369]
[1720756201549,7.2818,137.33,137.28,28.821]
[1720756201836,46.7931,137.34,137.24,22.907]
[1720756202138,7.2828,137.31,137.26,7.2853]
[1720756202440,7.2833,137.3,137.25,7.2858]
[1720756203445,7.4529,137.31,137.26,7.2854]
[1720756203743,15.1744,137.36,137.24,22.907]
[1720756203946,15.1744,137.36,137.3,7.2831]
[1720756203947,7.2809,137.35,137.3,7.2831]
[1720756204317,7.2812,137.34,137.29,7.2836]
[1720756204543,46.789,137.37,137.25,0.17]
[1720756204844,7.2824,137.32,137.27,7.2846]
[1720756205435,7.2818,137.33,137.28,7.2843]
[1720756205642,18.2021,137.35,137.24,22.907]
[1720756205831,7.2832,137.31,137.26,7.2852]
[1720756206040,7.2833,137.3,137.25,7.2856]
[1720756206642,7.2825,137.32,137.27,7.2844]
[1720756207533,7.2827,137.31,137.26,7.2852]
[1720756207736,7.2838,137.29,137.24,30.1933]
[1720756208642,7.2834,137.3,137.25,7.2858]
[1720756209151,7.4529,137.31,137.26,7.2853]
[1720756209317,7.2829,137.31,137.26,7.2853]
[1720756209738,0.17,137.32,137.24,22.907]
[1720756209935,7.2841,137.29,137.24,30.1934]
[1720756210127,7.2837,137.3,137.25,7.2858]
[1720756210615,0.17,137.32,137.25,0.56991775]
[1720756210820,0.17,137.32,137.24,22.907]
[1720756211022,7.2829,137.31,137.26,7.2852]
[1720756211645,7.2834,137.3,137.25,7.2857]
[1720756212649,7.283,137.31,137.26,7.2854]
[1720756213254,7.2834,137.3,137.25,7.2858]
[1720756215129,45.34,137.32,137.24,30.1933]
[1720756215130,7.2839,137.29,137.24,30.1933]
[1720756215440,7.2835,137.3,137.25,7.2859]
[1720756216436,7.2839,137.29,137.24,30.1933]
[1720756218650,60.23624382,137.32,137.26,7.2851]
[1720756218831,7.2828,137.31,137.26,7.2851]
[1720756219228,7.2833,137.3,137.24,22.907]
[1720756219455,7.2833,137.3,137.25,7.2856]
[1720756219653,7.2845,137.28,137.24,6.4968]
[1720756220646,7.624,137.29,137.24,13.7832]
[1720756220943,7.454,137.29,137.25,7.2859]
[1720756221145,0.17,137.29,137.25,7.2859]
[1720756221347,7.283,137.31,137.26,7.2854]
[1720756223354,7.78354382,137.32,137.27,7.2848]
[1720756223649,7.2814,137.34,137.29,7.2838]
[1720756223838,7.2814,137.34,137.29,13.285]
[1720756224236,14.89217025,137.35,137.29,13.285]
[1720756224649,7.2812,137.34,137.29,6.0012]
[1720756224955,7.2817,137.33,137.29,6.0012]
[1720756225139,7.2823,137.32,137.29,6.0012]
[1720756225654,7.2829,137.31,137.29,6.0012]
[1720756225852,7.2833,137.3,137.29,6.0012]
[1720756226432,7.2829,137.31,137.29,6.0012]
[1720756226631,7.2824,137.32,137.29,6.0012]
[1720756227665,46.7935,137.34,137.29,6.0012]
[1720756227837,7.2833,137.3,137.26,21.4786]
[1720756229450,45.34,137.33,137.26,21.4786]
[1720756229451,7.2839,137.29,137.26,21.4786]
[1720756230330,7.2835,137.3,137.26,21.4786]
[1720756231762,7.6229,137.31,137.26,28.7639]
[1720756232361,0.17,137.31,137.26,28.7639]
[1720756232539,7.2824,137.32,137.27,7.2848]
[1720756232959,7.2819,137.33,137.28,7.2843]
[1720756233656,7.2822,137.32,137.27,7.2847]
[1720756234370,7.2819,137.33,137.28,7.2843]
[1720756234539,7.2814,137.34,137.29,7.2837]
[1720756234738,7.2819,137.33,137.28,7.2841]
[1720756234939,7.2822,137.32,137.27,7.2847]
[1720756235637,7.2828,137.31,137.26,21.4786]
[1720756236037,7.2819,137.33,137.28,7.2843]
[1720756236263,7.2822,137.32,137.27,7.2847]
[1720756236675,7.2817,137.33,137.28,7.2841]
[1720756236970,7.2817,137.33,137.26,21.4786]
[1720756236971,7.2814,137.34,137.29,7.2838]
[1720756238366,7.2818,137.33,137.28,7.2842]
[1720756238757,7.2824,137.32,137.27,7.2848]
[1720756238943,7.2829,137.31,137.26,28.7639]
[1720756239145,46.9616,137.36,137.26,21.4786]
[1720756239441,45.34,137.35,137.26,21.4786]
[1720756239647,7.2825,137.32,137.26,21.4786]
[1720756240173,45.34,137.35,137.26,21.4786]
[1720756241274,21.02202375,137.34,137.26,21.4786]
[1720756241442,45.34,137.35,137.26,21.4786]
[1720756241645,21.02202375,137.34,137.26,21.4786]
[1720756241967,45.34,137.35,137.26,21.4786]
[1720756242172,21.02202375,137.34,137.26,21.4786]
[1720756242346,45.34,137.35,137.26,21.4786]
[1720756242673,21.5829,137.31,137.26,28.7639]
[1720756242975,14.3,137.31,137.27,7.2847]
[1720756243156,14.3,137.31,137.28,7.2842]
[1720756243472,14.3,137.32,137.28,7.2842]
[1720756243642,14.3,137.32,137.29,7.2838]
[1720756243838,21.5823,137.32,137.27,7.2847]
[1720756244056,14.3,137.31,137.27,7.2847]
[1720756244849,14.3,137.31,137.27,8.74096276]
[1720756245746,14.3,137.3,137.27,7.2847]
[1720756245945,14.3,137.3,137.27,8.74163826]
[1720756246167,14.3,137.31,137.27,7.2847]
[1720756247571,14.3,137.31,137.27,8.74159266]
[1720756247782,14.3,137.31,137.27,7.2847]
[1720756248156,7.2823,137.32,137.27,7.2847]
[1720756248356,14.3,137.3,137.27,7.2847]
[1720756248873,14.3,137.3,137.28,7.2842]
[1720756249176,14.3,137.3,137.27,7.2847]
[1720756249766,7.2834,137.3,137.26,21.4786]
[1720756250074,14.3,137.27,137.24,7.2861]
[1720756250375,14.3,137.25,137.24,7.2861]
[1720756250686,14.3,137.25,137.23,22.9064]
[1720756250856,14.3,137.24,137.23,22.9064]
[1720756251470,14.3,137.24,137.19,14.3]
[1720756251471,14.3,137.24,137.19,22.9064]
[1720756251651,14.3,137.24,137.19,30.1952]
[1720756251652,14.3,137.22,137.19,30.1952]
[1720756251853,14.3,137.2,137.16,7.2905]
[1720756252072,56.2544,137.26,137.16,7.2905]
[1720756252073,14.3,137.18,137.16,7.2905]
[1720756252371,14.3,137.17,137.15,21.6714]
[1720756252674,7.2887,137.2,137.15,6.616]
[1720756252878,28.65,137.21,137.14,7.2914]
[1720756252879,7.2892,137.19,137.14,7.2914]
[1720756253050,7.2892,137.19,137.13,7.2922]
[1720756253444,30.0,137.16,137.13,7.2922]
[1720756253753,30.0,137.16,137.12,15.9125494]
[1720756254669,37.2907,137.16,137.12,15.9125494]
[1720756254853,30.0,137.16,137.12,0.8571494]
[1720756255060,37.2909,137.16,137.12,0.8571494]
[1720756256376,7.4613,137.15,137.12,0.8571494]
[1720756256690,30.0,137.14,137.12,0.8571494]
[1720756257777,37.2919,137.14,137.12,0.8571494]
[1720756257990,30.0,137.14,137.12,0.8571494]
[1720756258153,7.4623,137.13,137.12,0.8571494]
[1720756258353,37.4623,137.13,137.12,0.8571494]
[1720756258962,37.4623,137.13,137.07,13.8525]
[1720756258963,82.6323,137.13,137.07,13.8525]
[1720756259659,7.2931,137.12,137.07,13.8525]
[1720756259862,37.6334,137.11,137.07,6.5572]
[1720756260758,7.2941,137.1,137.05,16.2239]
[1720756260962,37.4647,137.09,137.04,7.2969]
[1720756261791,30.0,137.09,137.05,7.2963]
[1720756262792,37.2946,137.09,137.04,7.2969]
[1720756263091,7.295,137.08,137.03,13.587]
[1720756263288,30.0,137.07,137.03,13.587]
[1720756264876,30.0,137.07,137.04,7.297]
[1720756265065,30.0,137.07,137.03,6.2895]
[1720756265265,30.0,137.07,137.06,7.296]
[1720756266288,7.2936,137.11,137.06,7.296]
[1720756267083,7.294,137.1,137.05,7.2963]
[1720756267281,7.294,137.1,137.04,7.2969]
[1720756267460,0.17,137.09,137.03,13.5871]
[1720756268180,7.4645,137.09,137.04,7.297]
[1720756268382,0.17,137.09,137.04,7.297]
[1720756268678,0.17,137.09,137.05,7.2965]
[1720756269062,0.17,137.1,137.03,6.2895]